fUSD/lending_fUSD_20240623
["ID","MTS","AMOUNT","RATE_DAILY","PERIOD"]
[330199278,1719123045381,-150.0,0.00020192,2]
[330199279,1719123045390,-527.66,0.00020192,2]
[330199280,1719123045400,-342.07,0.00020192,2]
[330199281,1719123045410,-1000.0,0.00020245,2]
[330199282,1719123045420,-985.2291,0.0002038,2]
[330199283,1719123045430,-214091.5875,0.0002038,2]
[330199284,1719123045439,-2500.0,0.0002038,2]
[330199285,1719123045450,-285.89344499,0.00020407,2]
[330199286,1719123045460,-174.39,0.00020411,2]
[330199287,1719123045471,-9926.16466457,0.00020416,2]
[330199288,1719123045482,-1478.73441933,0.00020416,2]
[330199289,1719123045493,-285.89344498,0.00020462,2]
[330199290,1719123045503,-9926.1646645,0.0002047,2]
[330199291,1719123045514,-216.40400056,0.0002047,2]
[330199292,1719123045523,-30728.61745962,0.0002048,2]
[330199304,1719123046641,-6398.91626596,0.0002048,2]
[330199305,1719123046924,-943.31862009,0.0002048,2]
[330199339,1719123197479,1000.0,0.00025865,120]
[330199340,1719123470440,301.08978247,0.00025999,60]
[330199347,1719124231735,-539.35,0.00017038,2]
[330199348,1719124231745,-788.0,0.000171,2]
[330199349,1719124231755,-273.62344353,0.00018392,2]
[330199350,1719124231766,-26.37655647,0.00018392,2]
[330199351,1719124231776,-150.0,0.00018392,2]
[330199352,1719124231786,-757.11551031,0.00018393,2]
[330199353,1719124231798,-1850.72560984,0.00018393,2]
[330199354,1719124231810,-3231.46766773,0.00018393,2]
[330199355,1719124231821,-720.87,0.00018903,2]
[330199356,1719124231831,-379.17713006,0.00018924,2]
[330199357,1719124231841,-272.55,0.00018941,2]
[330199358,1719124231853,-250.0,0.00019011,2]
[330199359,1719124231862,-448.937,0.00019261,2]
[330199360,1719124231872,-617.0,0.00019261,2]
[330199361,1719124231881,-150.0,0.00019261,2]
[330199362,1719124231891,-747.60146283,0.00019261,2]
[330199363,1719124231903,-555.39853717,0.00019261,2]
[330199364,1719124231914,-2410.0,0.00019261,2]
[330199365,1719124231925,-3211.194,0.00019261,2]
[330199366,1719124231934,-547.0,0.00019261,2]
[330199367,1719124231944,-1990.52,0.00019261,2]
[330199368,1719124231954,-1068.0,0.00019261,2]
[330199369,1719124231963,-5795.0,0.00019261,2]
[330199370,1719124231973,-1837.314,0.00019261,2]
[330199371,1719124231983,-5164.0,0.00019261,2]
[330199372,1719124231992,-360.939,0.00019261,2]
[330199373,1719124232002,-1276.835,0.00019261,2]
[330199374,1719124232011,-1653.0,0.00019261,2]
[330199375,1719124232021,-539.35,0.00019302,2]
[330199376,1719124232031,-1000.0,0.00019379,2]
[330199377,1719124232040,-164.73,0.00019448,2]
[330199378,1719124232049,-202.0,0.000195,2]
[330199379,1719124232058,-159.9,0.00019668,2]
[330199380,1719124232067,-164.73,0.00019786,2]
[330199381,1719124232077,-1000.0,0.00019839,2]
[330199382,1719124232086,-202.0,0.0001986,2]
[330199383,1719124232096,-307.06044002,0.0002,2]
[330199384,1719124232105,-181.0,0.0002,2]
[330199385,1719124232114,-420.0,0.0002006,2]
[330199386,1719124232124,-30000.0,0.000201,2]
[330199387,1719124232134,-164.73,0.00020124,2]
[330199388,1719124232143,-18422.32813723,0.0002018,2]
[330199389,1719124232153,-2500.0,0.0002018,2]
[330199390,1719124232163,-1608.06043493,0.0002018,2]
[330199391,1719124232173,-285.89344499,0.0002018,2]
[330199392,1719124232182,-985.2291,0.0002018,2]
[330199393,1719124232191,-1608.06043492,0.00020197,2]
[330199394,1719124232201,-10000.0,0.000202,2]
[330199395,1719124232210,-1608.06043492,0.00020214,2]
[330199396,1719124232222,-1000.0,0.00020215,2]
[330199397,1719124232231,-202.0,0.0002023,2]
[330199398,1719124232240,-1608.06043492,0.00020231,2]
[330199399,1719124232250,-210.0,0.00020232,2]
[330199400,1719124232259,-1608.06043492,0.00020249,2]
[330199401,1719124232268,-18422.32813714,0.0002026,2]
[330199402,1719124232278,-285.89344498,0.0002026,2]
[330199403,1719124232288,-1608.06043492,0.00020266,2]
[330199404,1719124232297,-271.2078,0.0002028,2]
[330199405,1719124232307,-169555.67343454,0.0002028,2]
[330199406,1719124232329,-338.36,0.0002028,2]
[330199407,1719124232340,-355.41834579,0.0002028,2]
[330199408,1719124232351,-43842.13571967,0.0002028,2]
[330199409,1719124232361,-335.24380157,0.0002028,2]
[330199410,1719124232370,-1608.06043492,0.00020283,2]
[330199411,1719124232379,-215.0,0.000203,2]
[330199412,1719124232388,-167.0,0.000203,2]
[330199413,1719124232397,-5908.09592737,0.000203,2]
[330199414,1719124232406,-441.8894,0.000203,2]
[330199415,1719124232415,-1608.06043492,0.000203,2]
[330199416,1719124232425,-1976.96554727,0.000203,2]
[330199417,1719124232434,-13642.60665855,0.000203,2]
[330199418,1719124232443,-308.95791452,0.000203,2]
[330199419,1719124232452,-219.97,0.00020301,3]
[330199420,1719124232461,-263.0607,0.00020316,2]
[330199421,1719124232471,-18422.32813714,0.0002034,2]
[330199422,1719124232480,-285.89344498,0.0002034,2]
[330199423,1719124232489,-5908.09592734,0.00020355,2]
[330199424,1719124232499,-1000.0,0.00020379,2]
[330199425,1719124232508,-155.0,0.0002038,2]
[330199426,1719124232517,-1000.0,0.0002038,2]
[330199427,1719124232526,-41396.02998679,0.0002038,2]
[330199428,1719124232552,-597.34227907,0.0002038,2]
[330199429,1719124232564,-5839.31685542,0.0002038,2]
[330199430,1719124232575,-240.71687872,0.0002038,2]
[330199431,1719124232584,-497.6223,0.0002038,2]
[330199432,1719124232593,-8678.52282128,0.0002038,2]
[330199433,1719124232604,-8997.05977711,0.0002038,2]
[330199434,1719124232615,-12482.88798086,0.0002038,2]
[330199435,1719124232639,-3845.54217787,0.0002038,2]
[330199436,1719124232655,-1623.28971584,0.0002038,2]
[330199441,1719124237643,-1337.30407824,0.00018393,2]
[330199445,1719124239912,-489.92583295,0.00018393,2]
[330199452,1719124242936,-8172.77008881,0.00018393,2]
[330199453,1719124242946,-250.0,0.00018903,2]
[330199454,1719124242956,-10533.198,0.00019261,2]
[330199455,1719124242965,-442.0,0.00019261,2]
[330199456,1719124242974,-165.0,0.00019261,2]
[330199457,1719124242984,-206.31709052,0.000203,2]
[330199458,1719124242993,-903.97572704,0.0002038,2]
[330199459,1719124243003,-100000.0,0.0002038,2]
[330199460,1719124243012,-198.4982,0.0002038,2]
[330199461,1719124243022,-242.42163665,0.00020399,2]
[330199462,1719124243032,-500.0,0.00020399,2]
[330199463,1719124243041,-497.65900454,0.00020399,2]
[330199464,1719124243050,-372.06845067,0.00020399,2]
[330199465,1719124243064,-500.0,0.00020399,2]
[330199466,1719124243073,-500.0,0.00020399,2]
[330199467,1719124243083,-323.47930475,0.00020399,2]
[330199468,1719124243093,-500.0,0.00020399,2]
[330199469,1719124243103,-378.44707232,0.00020399,2]
[330199470,1719124243112,-500.0,0.00020399,2]
[330199471,1719124243123,-500.0,0.00020399,2]
[330199472,1719124243133,-150.0,0.00020399,2]
[330199473,1719124243143,-150.0,0.00020399,7]
[330199474,1719124243152,-183882.08558693,0.000204,7]
[330199487,1719124398233,1000.0,0.00025908,120]
[330199491,1719125365790,-564.91,0.00016072,2]
[330199492,1719125365812,-159.90595749,0.000169,2]
[330199493,1719125365835,-5240.0,0.000171,2]
[330199494,1719125365857,-150.0,0.00017533,2]
[330199495,1719125365879,-300.0,0.00017533,2]
[330199496,1719125365902,-685.34,0.00017957,2]
[330199497,1719125365925,-2782.67,0.00017992,2]
[330199498,1719125365948,-250.0,0.00018008,2]
[330199499,1719125365970,-286.39,0.00018022,2]
[330199500,1719125365991,-250.0,0.00018027,2]
[330199501,1719125366011,-297.91,0.00018134,2]
[330199502,1719125366032,-438.28,0.00018146,2]
[330199503,1719125366054,-2000.0,0.00018162,3]
[330199504,1719125366080,-226.94,0.00018173,2]
[330199505,1719125366101,-705.61,0.00018246,2]
[330199506,1719125366124,-564.91,0.00018336,2]
[330199507,1719125366146,-22536.4,0.00018368,2]
[330199508,1719125366169,-200.0,0.00018422,2]
[330199509,1719125366191,-211.85,0.00018436,2]
[330199510,1719125366213,-1707.32,0.00018447,2]
[330199511,1719125366234,-3277.69,0.00018485,2]
[330199512,1719125366254,-178.2,0.00018507,2]
[330199513,1719125366276,-237.72,0.00018517,2]
[330199514,1719125366298,-1000.0,0.00018518,2]
[330199515,1719125366322,-1000.0,0.00018568,2]
[330199516,1719125366345,-1626.12,0.00018569,2]
[330199517,1719125366367,-492.45,0.00018604,2]
[330199518,1719125366391,-1000.0,0.00018619,2]
[330199519,1719125366414,-1000.0,0.00018627,2]
[330199520,1719125366436,-499.99,0.00018647,2]
[330199521,1719125366459,-1000.0,0.0001867,2]
[330199522,1719125366482,-1000.0,0.00018721,2]
[330199523,1719125366505,-1000.0,0.00018772,2]
[330199524,1719125366529,-1000.0,0.00018822,2]
[330199525,1719125366551,-4578.5,0.00018839,2]
[330199526,1719125366574,-1000.0,0.00018873,2]
[330199527,1719125366596,-1000.0,0.00018924,2]
[330199528,1719125366619,-1000.0,0.00018975,2]
[330199529,1719125366642,-1000.0,0.00019026,2]
[330199530,1719125366663,-1000.0,0.00019076,2]
[330199531,1719125366686,-1000.0,0.00019127,2]
[330199532,1719125366707,-420.0,0.0001914,2]
[330199533,1719125366729,-1000.0,0.00019178,2]
[330199534,1719125366751,-919.64137807,0.00019199,2]
[330199535,1719125366772,-290.0,0.000192,2]
[330199536,1719125366794,-5164.0,0.000192,2]
[330199537,1719125366815,-1321.48,0.000192,2]
[330199538,1719125366837,-1655.148,0.000192,2]
[330199539,1719125366859,-38159.0,0.000192,2]
[330199540,1719125366881,-812.0,0.000192,2]
[330199541,1719125366903,-442.0,0.000192,2]
[330199542,1719125366926,-165.0,0.000192,2]
[330199543,1719125366948,-1068.0,0.000192,2]
[330199544,1719125366971,-1000.0,0.00019229,2]
[330199545,1719125366994,-1000.0,0.00019279,2]
[330199546,1719125367018,-210.0,0.00019286,2]
[330199547,1719125367041,-1000.0,0.0001933,2]
[330199548,1719125367064,-1055.32,0.0001937,2]
[330199549,1719125367091,-354.29,0.0001937,2]
[330199550,1719125367115,-847.34,0.0001937,2]
[330199551,1719125367137,-150.0,0.0001937,2]
[330199552,1719125367162,-150.0,0.0001937,2]
[330199553,1719125367184,-1000.0,0.00019381,2]
[330199554,1719125367210,-1000.0,0.00019432,2]
[330199555,1719125367232,-852.82,0.00019452,2]
[330199556,1719125367255,-418.39,0.00019452,2]
[330199557,1719125367277,-852.82,0.00019452,2]
[330199558,1719125367300,-418.39,0.00019452,2]
[330199559,1719125367327,-852.82,0.00019452,2]
[330199560,1719125367351,-418.39,0.00019452,2]
[330199561,1719125367374,-418.39,0.00019452,2]
[330199562,1719125367397,-852.82,0.00019452,2]
[330199563,1719125367419,-418.39,0.00019452,2]
[330199564,1719125367441,-1000.0,0.00019483,2]
[330199565,1719125367463,-150.0,0.00019589,2]
[330199566,1719125367486,-527.66,0.00019589,2]
[330199567,1719125367510,-423.67,0.00019589,2]
[330199568,1719125367534,-300.0,0.00019589,2]
[330199569,1719125367556,-150.0,0.00019589,2]
[330199570,1719125367578,-150.0,0.00019589,2]
[330199571,1719125367600,-300.0,0.00019589,2]
[330199572,1719125367626,-164.6,0.00019589,2]
[330199573,1719125367652,-354.29,0.00019589,2]
[330199574,1719125367676,-150.0,0.00019589,2]
[330199575,1719125367698,-527.66,0.00019589,2]
[330199576,1719125367720,-423.67,0.00019589,2]
[330199577,1719125367742,-150.0,0.00019589,2]
[330199578,1719125367765,-164.6,0.00019589,2]
[330199579,1719125367789,-354.29,0.00019589,2]
[330199580,1719125367811,-150.0,0.00019589,2]
[330199581,1719125367834,-150.0,0.00019589,2]
[330199582,1719125367859,-150.0,0.00019589,2]
[330199583,1719125367885,-527.66,0.00019589,2]
[330199584,1719125367908,-150.0,0.00019589,2]
[330199585,1719125367930,-329.33,0.00019589,2]
[330199586,1719125367953,-354.29,0.00019589,2]
[330199587,1719125367975,-150.0,0.00019589,2]
[330199588,1719125367997,-150.0,0.00019589,2]
[330199589,1719125368019,-164.6,0.00019589,2]
[330199590,1719125368041,-423.67,0.00019589,2]
[330199591,1719125368062,-847.34,0.00019589,2]
[330199592,1719125368089,-150.0,0.00019589,2]
[330199593,1719125368114,-164.6,0.00019589,2]
[330199594,1719125368137,-150.0,0.00019589,2]
[330199595,1719125368160,-1055.32,0.00019589,2]
[330199596,1719125368183,-150.0,0.00019589,2]
[330199597,1719125368205,-354.29,0.00019589,2]
[330199598,1719125368226,-150.0,0.00019589,2]
[330199599,1719125368247,-527.66,0.00019589,2]
[330199600,1719125368491,-150.0,0.00019589,2]
[330199601,1719125368515,-150.0,0.00019589,2]
[330199602,1719125368539,-150.0,0.00019589,2]
[330199603,1719125368563,-354.29,0.00019589,2]
[330199604,1719125368585,-423.67,0.00019589,2]
[330199605,1719125368609,-150.0,0.00019589,2]
[330199606,1719125368630,-300.0,0.00019589,2]
[330199607,1719125368652,-150.0,0.00019589,2]
[330199608,1719125368674,-164.6,0.00019589,2]
[330199609,1719125368698,-423.67,0.00019589,2]
[330199610,1719125368720,-300.0,0.00019589,2]
[330199611,1719125368742,-354.29,0.00019589,2]
[330199612,1719125368765,-150.0,0.00019589,2]
[330199613,1719125368788,-150.0,0.00019589,2]
[330199614,1719125368810,-527.66,0.00019589,2]
[330199615,1719125368831,-150.0,0.00019589,2]
[330199616,1719125368855,-164.6,0.00019589,2]
[330199617,1719125368876,-527.66,0.00019589,2]
[330199618,1719125368902,-150.0,0.00019589,2]
[330199619,1719125368925,-150.0,0.00019589,2]
[330199620,1719125368950,-150.0,0.00019589,2]
[330199621,1719125368973,-164.6,0.00019589,2]
[330199622,1719125368996,-354.29,0.00019589,2]
[330199623,1719125369018,-150.0,0.00019589,2]
[330199624,1719125369041,-150.0,0.00019589,2]
[330199625,1719125369064,-423.67,0.00019589,2]
[330199626,1719125369093,-354.29,0.00019589,2]
[330199627,1719125369116,-329.2,0.00019589,2]
[330199628,1719125369137,-300.0,0.00019799,2]
[330199629,1719125369159,-167.0,0.00019876,2]
[330199630,1719125369184,-12895.62969607,0.000199,2]
[330199631,1719125369206,-2000.0,0.0002,2]
[330199632,1719125369230,-1000.0,0.0002,3]
[330199633,1719125369254,-1000.0,0.0002,3]
[330199634,1719125369276,-1015.0,0.0002,2]
[330199635,1719125369297,-1000.0,0.0002,3]
[330199636,1719125369319,-1000.0,0.0002,3]
[330199637,1719125369341,-1000.0,0.0002,2]
[330199638,1719125369362,-1000.0,0.0002,2]
[330199639,1719125369385,-758.0,0.0002,3]
[330199640,1719125369407,-590.0,0.0002,3]
[330199641,1719125369429,-327.0,0.0002,2]
[330199642,1719125387404,435.92600699,0.00019927,2]
[330199643,1719125427493,-150.0,0.000192,2]
[330199644,1719125427516,-6761.401,0.000192,2]
[330199645,1719125427537,-1891.96036097,0.0002,2]
[330199646,1719125427558,-200.0,0.0002,2]
[330199647,1719125429114,226.535,0.000192,2]
[330199656,1719125431973,-12895.62969599,0.00020011,2]
[330199657,1719125431983,-850.42,0.00020027,2]
[330199658,1719125431993,-852.82,0.00020055,2]
[330199659,1719125432003,-852.82,0.00020055,2]
[330199660,1719125432012,-418.39,0.00020055,2]
[330199661,1719125432022,-418.39,0.00020055,2]
[330199662,1719125432031,-852.82,0.00020055,2]
[330199663,1719125432041,-839.2,0.00020055,2]
[330199664,1719125432050,-297.32648978,0.00020079,2]
[330199665,1719125432059,-780.1279,0.0002008,2]
[330199666,1719125432069,-905.4644,0.0002008,2]
[330199667,1719125432078,-300.0,0.000201,2]
[330199668,1719125432088,-527.66,0.000201,2]
[330199669,1719125432102,-12895.62969599,0.00020122,2]
[330199670,1719125432111,-198.4982,0.0002018,2]
[330199671,1719125432120,-36293.9474,0.0002018,2]
[330199672,1719125432129,-100000.0,0.0002018,2]
[330199673,1719125432144,-150.0,0.00020192,2]
[330199674,1719125432153,-150.0,0.00020192,2]
[330199675,1719125432162,-150.0,0.00020192,2]
[330199676,1719125432174,-342.07,0.00020192,2]
[330199677,1719125432183,-328.25685622,0.000202,2]
[330199678,1719125432192,-176.77024669,0.000202,2]
[330199679,1719125432202,-8401.78306416,0.000202,2]
[330199680,1719125432224,-15321.1287449,0.000202,2]
[330199681,1719125432238,-858.16390953,0.000202,2]
[330199682,1719125432267,-33045.14505474,0.000202,2]
[330199683,1719125432277,-200.0,0.000202,2]
[330199684,1719125432286,-12895.62969599,0.00020233,2]
[330199685,1719125432296,-161.63425311,0.00020299,2]
[330199686,1719125432306,-8007.5543617,0.000203,2]
[330199687,1719125434908,257.526,0.000192,2]
[330199699,1719125437887,-476.24608897,0.00020079,2]
[330199700,1719125437900,-1513.23290034,0.000203,2]
[330199701,1719125437913,-3638.00095113,0.000203,2]
[330199702,1719125437926,-676.01248582,0.000203,2]
[330199703,1719125437940,-2820.66603228,0.000203,2]
[330199704,1719125437953,-15804.73164907,0.000203,2]
[330199705,1719125438045,-1008.61726376,0.000203,2]
[330199706,1719125438199,-2516.30847202,0.000203,2]
[330199719,1719125438475,24719.77660041,0.00019911,2]
[330199725,1719125440296,-515.37748105,0.00019911,2]
[330199726,1719125440309,-348.49967892,0.00019911,2]
[330199727,1719125440480,-791.27084003,0.00019911,2]
[330199732,1719125443644,-73625.07539959,0.00019911,2]
[330199733,1719125443656,-209014.87588388,0.000203,2]
[330199734,1719125443666,-10994.0339,0.000203,2]
[330199735,1719125443675,-8061.16488995,0.000203,2]
[330199736,1719125855497,392068.53108876,0.00024,120]
[330199737,1719125855532,99127.0,0.00024,120]
[330199738,1719125855561,150000.0,0.00024,120]
[330199739,1719125855592,296792.28762629,0.00024,120]
[330199740,1719125855620,990000.0,0.00024,120]
[330199741,1719125855658,500000.0,0.00024,120]
[330199742,1719125893535,250000.0,0.0002,120]
[330199743,1719125893564,1992242.094,0.0002,120]
[330199744,1719125893588,434853.0,0.0002,120]
[330199745,1719125893612,94775.58925903,0.0002,120]
[330199746,1719125893651,6000.0,0.0002,120]
[330199747,1719125893675,73000.0,0.0002,120]
[330199748,1719125893700,2000.0,0.0002,120]
[330199749,1719125893725,515000.0,0.0002,120]
[330199750,1719125893759,2305.0,0.0002,120]
[330199751,1719125893791,10000.0,0.0002,120]
[330199752,1719125893830,50000.0,0.0002,120]
[330199753,1719125893877,8204.2,0.0002,120]
[330199754,1719125893911,175.0,0.0002,120]
[330199755,1719125893942,175.0,0.0002,120]
[330199756,1719125893968,8436.0,0.0002,120]
[330199757,1719125893992,9000.0,0.0002,120]
[330199758,1719125894019,6652.9,0.0002,120]
[330199759,1719125894057,2000.0,0.0002,120]
[330199760,1719125894085,600000.0,0.0002,120]
[330199761,1719125894110,994444.0,0.0002,120]
[330199762,1719125894133,5000.0,0.0002,120]
[330199763,1719125894179,515000.0,0.0002,120]
[330199764,1719125894204,10000.0,0.0002,120]
[330199765,1719125894229,20000.0,0.0002,120]
[330199766,1719125894257,214000.0,0.0002,120]
[330199769,1719126532950,155.70917687,0.00011,4]
[330199770,1719126633713,-758.46063196,0.00013233,2]
[330199771,1719126633726,-328.64556,0.00013233,2]
[330199772,1719126633738,-1671.32115809,0.00013233,2]
[330199774,1719126633750,-716.17104019,0.00013233,2]
[330199778,1719126634065,-873.0,0.00013233,2]
[330199779,1719126634077,-2635.69322447,0.00013233,2]
[330199780,1719126634087,-328.40415863,0.00013333,2]
[330199781,1719126634098,-758.81374083,0.00013333,2]
[330199782,1719126634107,-881.72287782,0.00013333,2]
[330199783,1719126634117,-267.73995674,0.00016808,2]
[330199784,1719126634127,-508.41,0.00016909,2]
[330199785,1719126634137,-293.1907,0.00017,2]
[330199786,1719126634146,-150.0,0.00017259,2]
[330199787,1719126634156,-150.0,0.00017259,2]
[330199788,1719126634165,-300.0,0.00017259,2]
[330199789,1719126634174,-211.85,0.00018763,2]
[330199790,1719126634184,-250.0,0.00018826,2]
[330199791,1719126634193,-2000.0,0.00018839,3]
[330199792,1719126634202,-420.0,0.00018846,2]
[330199793,1719126634212,-1137.54,0.00018857,2]
[330199794,1719126634221,-164.74,0.00018916,2]
[330199795,1719126634230,-1057.21546368,0.00018959,2]
[330199796,1719126634239,-1000.0,0.0001914,2]
[330199797,1719126634248,-508.41,0.00019173,2]
[330199798,1719126634258,-198.094,0.000192,2]
[330199799,1719126634268,-205.016,0.000192,2]
[330199800,1719126634279,-193.746,0.000192,2]
[330199801,1719126634289,-150.0,0.000192,2]
[330199802,1719126634299,-812.0,0.000192,2]
[330199803,1719126634309,-1000.0,0.00019254,2]
[330199804,1719126634318,-13013.6,0.00019339,2]
[330199805,1719126634328,-690.10215601,0.00019576,2]
[330199806,1719126634337,-600.0,0.00019749,2]
[330199807,1719126634347,-1000.0,0.00019917,2]
[330199808,1719126634357,-44542.67872503,0.00019927,2]
[330199809,1719126634369,-985.42,0.00019927,2]
[330199810,1719126634380,-500.0,0.00019927,2]
[330199812,1719126634392,-442.11822717,0.00019927,2]
[330199844,1719126638426,-1259.6135478,0.00019927,2]
[330199845,1719126638436,-400.0,0.0002,2]
[330199846,1719126638446,-1295.95156761,0.0002,2]
[330199847,1719126638457,-4677.9289797,0.0002,2]
[330199848,1719126638469,-1451.33807564,0.0002,2]
[330199849,1719126638481,-1585.99598244,0.0002,2]
[330199850,1719126638491,-155.13013529,0.0002,2]
[330199851,1719126638500,-6467.40908423,0.00020039,2]
[330199852,1719126638635,-6280.53656608,0.00020039,2]
[330199853,1719126638644,-400.0,0.000201,2]
[330199854,1719126638653,-10043.07,0.000201,2]
[330199855,1719126638663,-903.9758,0.000202,2]
[330199856,1719126638673,-200.12541154,0.000202,2]
[330199857,1719126638683,-300.0,0.00020255,2]
[330199858,1719126638692,-200.12541148,0.00020278,2]
[330199859,1719126638702,-2892.32672084,0.00020288,2]
[330199860,1719126638713,-328.625,0.00020288,2]
[330199861,1719126638725,-1107.47091696,0.00020288,2]
[330199862,1719126638737,-3144.18582451,0.00020288,2]
[330199863,1719126638749,-588.55643769,0.00020288,2]
[330199864,1719126638759,-226.67413324,0.00020288,2]
[330199865,1719126638771,-10767.35976676,0.00020288,2]
[330199866,1719126638780,-162.53122664,0.00020288,2]
[330199867,1719126638790,-215.0,0.000203,2]
[330199868,1719126638800,-12293.21454793,0.000203,10]
[330199869,1719126638811,-179.81821662,0.000203,2]
[330199870,1719126638820,-1000.0,0.000203,2]
[330199871,1719126638830,-200.0,0.000203,2]
[330199872,1719126638840,-1092.19411785,0.000203,2]
[330199873,1719126638851,-168.68549707,0.000203,2]
[330199874,1719126638861,-10000.0,0.000203,2]
[330199875,1719126638870,-441.8894,0.000203,2]
[330199876,1719126638880,-193.31324458,0.000203,2]
[330199877,1719126638889,-609.05696,0.000203,2]
[330199878,1719126638899,-2407.5271774,0.000203,2]
[330199879,1719126638910,-5092.4728226,0.000203,2]
[330199880,1719126638920,-2690.7429588,0.000203,2]
[330199881,1719126638933,-6404.3281469,0.000203,2]
[330199882,1719126638943,-5401.0534591,0.000203,2]
[330199883,1719126638952,-205.971943,0.000203,2]
[330199884,1719126639277,-1317.97703152,0.000203,2]
[330199885,1719126639288,-161.63425311,0.000203,2]
[330199886,1719126639298,-328.25685621,0.000203,2]
[330199887,1719126639308,-177.9294397,0.000203,2]
[330199888,1719126639318,-781.08395846,0.00020355,2]
[330199889,1719126639330,-1924.09839103,0.00020355,2]
[330199890,1719126639342,-2695.87110955,0.00020355,2]
[330199891,1719126639353,-103.42891035,0.00020356,2]
[330199892,1719126640536,-1873.3,0.00013333,2]
[330199893,1719126640548,-2923.15264686,0.00013333,2]
[330199894,1719126642191,-21.63146385,0.00013333,2]
[330199897,1719126643386,-3323.85695952,0.00013333,2]
[330199898,1719126643398,-11459.79954462,0.00013333,2]
[330199899,1719126643407,-96.69650113,0.00020356,2]
[330199900,1719126643417,-7498.7027442,0.00020388,2]
[330199901,1719126643428,-684.85547295,0.00020388,2]
[330199902,1719126643439,-35370.04434617,0.00020388,2]
[330199903,1719126643450,-1226.53454,0.00020388,2]
[330199904,1719126643461,-340.7694821,0.00020388,2]
[330199905,1719126643472,-52781.38661808,0.00020388,2]
[330199906,1719126643481,-7483.3850299,0.00020388,2]
[330199907,1719126643490,-151.0,0.00020388,2]
[330199908,1719126643500,-151.0,0.00020388,2]
[330199909,1719126643509,-52059.096904,0.00020388,2]
[330199910,1719126643519,-10933.4861582,0.00020388,2]
[330199911,1719126643532,-1037.8023818,0.00020388,2]
[330199912,1719126643541,-201.5522145,0.0002039,2]
[330199913,1719126643551,-201.5522145,0.0002039,2]
[330199914,1719126643560,-242.42163665,0.00020399,2]
[330199915,1719126643571,-500.0,0.00020399,2]
[330199916,1719126643580,-497.65900454,0.00020399,2]
[330199917,1719126643589,-350.0,0.00020399,2]
[330199918,1719126643601,-500.0,0.00020399,2]
[330199919,1719126643610,-464.91295062,0.00020399,2]
[330199920,1719126643619,-323.47930475,0.00020399,2]
[330199921,1719126643628,-372.06845067,0.00020399,2]
[330199922,1719126643638,-500.0,0.00020399,2]
[330199923,1719126643647,-200.0,0.00020399,2]
[330199924,1719126643656,-1095.28442803,0.00020399,5]
[330199925,1719126643665,-150.0,0.00020399,2]
[330199926,1719126643675,-150.0,0.00020399,7]
[330199927,1719126643683,-423386.11135076,0.000204,7]
[330199928,1719126643692,-121702.52505666,0.000204,4]
[330199929,1719126643761,-2235.21674077,0.000204,4]
[330199930,1719126643772,-7180.0,0.000204,4]
[330199931,1719126643784,-3465.7968536,0.000204,4]
[330199932,1719126643795,-1079.31918,0.000204,4]
[330199933,1719126646142,-308.25,0.000204,4]
[330199937,1719126646422,-1094.35362506,0.000204,4]
[330199938,1719126646433,-1946.2076772,0.000204,4]